[Event "FIDE Zonal 4-2 Open 2023"]
[Site "Dimbroko"]
[Date "2023.03.27"]
[Round "2.6"]
[White "Harold Evans"]
[Black "Bobby Ballah"]
[Result "1/2-1/2"]
[ECO "D00"]
[WhiteElo "1714"]
[BlackElo "1914"]
[Annotator "TA"]
[PlyCount "137"]
[EventDate "2023.03.25"]
[EventType "swiss"]
[SourceTitle "playchess.com"]
[Source "ChessBase"]
[SourceQuality "1"]
[TimeControl "40/5400+30:1800+30"]

{[%evp 9,137,-23,-27,-69,-27,-112,-99,-95,-99,-121,-117,-125,-120,-118,0,-8,12,7,92,72,454,7,8,20,61,63,77,42,49,20,45,48,75,44,49,21,23,23,35,14,261,179,184,0,0,0,0,0,769,151,246,243,247,237,242,241,202,142,193,113,108,104,109,106,108,98,167,106,214,159,195,87,104,15,87,60,60,56,672,672,665,661,565,556,577,549,358,8,8,0,0,0,0,0,0,0,0,0,0,0,0,-8,0,-70,-8,-8,0,-8,0,-8,0,0,0,0,8,8,8,8,8,8,8,8,8,8,8,8,8,8,8,8]} 1. d4 {[%emt 0:00:09]} Nf6 {[%emt 0:00:06]} 2. Nc3 {[%emt 0:00:28]} d5 {[%emt 0:01:34]} 3. Bd2 {[%emt 0:00:26]} e6 {[%emt 0:00:46]} 4. e3 {[%emt 0:00:13]} c5 {[%emt 0:00:18]} 5. dxc5 {[%emt 0:00:54]} Bxc5 {[%emt 0:00:11]} 6. Bd3 {[%emt 0:00:09] [#] D00: 1 d4 d5: Unusual lines.} O-O $146 {[%emt 0:00:31]} ({Predecessor:} 6... Bd7 7. Qe2 O-O 8. O-O-O h6 {0-1 Lukyanchuk,N-Razumichin,A (2288) RUS-Cup2 email 2002}) 7. Qe2 {[%emt 0:00:11]} (7. Nf3 $11) 7... e5 {[%emt 0:00:10]} 8. f3 {[%emt 0:02:09] Black is better.} Nc6 {[%emt 0:04:34]} 9. O-O-O {[%emt 0:00:41]} Be6 {[%emt 0:01:19]} 10. Kb1 {[%emt 0:00:58]} Rc8 {[%emt 0:01:47]} 11. Nh3 {[%emt 0:00:32][%cal Bg1h3,Bh3f4,Bf4d5][%mdl 32]} d4 {[%emt 0:09:00]} (11... h6 $17 {And now ...Nb4 would win.} 12. Nf2 Be7) 12. exd4 $11 {[%emt 0:03:14]} exd4 {[%emt 0:00:47]} (12... Qxd4 13. Ng5 $16) (12... Nxd4 {with more complications.} 13. Qxe5 Bxh3 14. gxh3 Nxf3 15. Qg3 Nxd2+ 16. Rxd2 Qb6) 13. Ne4 {[%emt 0:00:25]} Bb4 {[%emt 0:01:14]} (13... Re8 $11) 14. Nf4 $16 {[%emt 0:07:10]} Bf5 $2 {[%emt 0:10:42][%mdl 8192]} (14... Re8 $16) 15. g4 $2 {[%emt 0:04:35]} ({White has to play} 15. Nxf6+ $1 $18 Qxf6 16. Nd5) 15... Bxe4 $11 {[%emt 0:00:19]} 16. fxe4 {[%emt 0:01:13]} Re8 {[%emt 0:00:58]} 17. g5 {[%emt 0:00:29]} Nd7 {[%emt 0:00:57]} 18. Rhg1 {[%emt 0:01:46]} Nde5 {[%emt 0:01:49]} 19. Nd5 {[%emt 0:01:37]} (19. Rg2 {simplifies} Bxd2 20. Qxd2 Qa5 21. Qxa5 Nxa5 22. h4) 19... Nxd3 {[%emt 0:06:01]} 20. Qxd3 {[%emt 0:01:00]} Ne5 {[%emt 0:01:16]} 21. Qh3 {[%emt 0:01:50]} (21. Qxd4 $2 Bc5 22. Nf6+ gxf6 23. gxf6+ Kh8 24. Qxd8 Rcxd8 $19) 21... Bc5 {[%emt 0:07:02][%cal Od4d3]} 22. Rg3 {[%emt 0:05:14]} Ng6 {[%emt 0:08:29]} 23. Qg4 {[%emt 0:03:04]} Qd6 {[%emt 0:01:41]} (23... Ne7 {simplifies} 24. Nf4 Bd6 25. Rg2 Bxf4 26. Bxf4 Nc6) 24. Rh3 $36 {[%emt 0:06:14][%mdl 2048] Threatening Rf1. White has the initiative.} Re6 $2 {[%emt 0:10:11]} (24... Qe6 $11 {and Black is okay.} 25. Qh5 Nf8) 25. Rf1 {[%emt 0:04:46]} Qa6 {[%emt 0:11:07]} 26. Rhf3 {[%emt 0:01:48]} (26. Qf3 $1 $18 {[%cal Rf3f7]} Ne5 27. Qf5) 26... Ne5 {[%emt 0:01:12][%csl LRf3,LRg4]} 27. Qf5 {[%emt 0:01:57] Dancing on a razor blade.} Nxf3 {[%emt 0:00:59]} 28. Rxf3 {[%emt 0:02:41]} (28. Qxf3 $2 Rxe4 29. Qxf7+ (29. Qf5 $2 Qe6 $19) 29... Kh8 $19) 28... Ree8 $2 {[%emt 0:04:16][%mdl 8192]} (28... Qc6 $11) 29. Qxf7+ $2 {[%emt 0:02:37]} (29. Nf6+ Qxf6 30. gxf6) 29... Kh8 $18 {[%emt 0:00:19] ...Bd6 would be deadly.} 30. Nc7 {[%emt 0:01:35][%cal Oc7e8]} Qc6 {[%emt 0:06:05]} 31. Nxe8 {[%emt 0:00:55]} Rxe8 {[%emt 0:01:01] [#]} 32. e5 {[%emt 0:04:57][%mdl 512] Strongly threatening b4.} Rc8 {[%emt 0:01:25]} (32... Qe6 33. b4) 33. Qf5 {[%emt 0:04:13][%cal Og5g6] Threatens to win with g6!} Be7 {[%emt 0:01:33]} (33... Kg8 $16 34. Qf7+ Kh8) 34. c3 {[%emt 0:00:54]} (34. h4 $18) 34... g6 $16 {[%emt 0:00:52]} 35. Qd3 {[%emt 0:00:06]} dxc3 {[%emt 0:01:04]} 36. Bxc3 {[%emt 0:00:50] Intending e6+ and mate.} Qe6 {[%emt 0:01:26]} 37. h4 {[%emt 0:01:39]} Rd8 {[%emt 0:01:50]} (37... Rc4 $16) 38. Qe4 {[%emt 0:00:39]} (38. Qb5 $1 $18) 38... Rd5 {[%emt 0:02:35]} (38... b5 $16) 39. Kc2 {[%emt 0:02:29]} Kg8 {[%emt 0:00:39]} 40. Rd3 {[%emt 0:00:29]} (40. Qa4 $18 {and White stays clearly on top. White threatens Qe8+ and mate.} Rd7 41. Qb3 (41. Qxa7 $2 Qd5 $19) 41... Qxb3+ 42. Kxb3) 40... Rxd3 {[%emt 0:01:50]} 41. Qxd3 {[%emt 0:30:16][%mdl 4096] Endgame KQB-KQB} (41. Kxd3 $16 b6 42. Ke2 (42. Qc4 Kf7 $16)) 41... h6 {[%emt 0:03:03]} (41... Qxa2 $11 {keeps the balance.} 42. Qd7 Qf7) 42. Qe4 {[%emt 0:00:00]} hxg5 {[%emt 0:01:32]} 43. hxg5 {[%emt 0:00:00]} (43. Qxb7 gxh4 44. Qxa7 h3 45. Qa8+ Kh7 $19) 43... Qf5 $2 {[%emt 0:00:14][%mdl 8192]} (43... a6 $14) 44. Qxf5 $18 {[%emt 0:00:00]} gxf5 {[%emt 0:00:05] [#] KB-KB} 45. Bd2 {[%emt 0:00:00]} Kf7 {[%emt 0:01:20]} 46. Kd3 {[%emt 0:00:00]} Kg6 {[%emt 0:02:09] [#]} 47. e6 $1 {[%emt 0:00:00]} f4 {[%emt 0:00:27]} 48. Ke4 $2 {[%emt 0:00:00]} (48. Bxf4 $18 Kf5 49. Be3) 48... Bxg5 $11 {[%emt 0:00:57]} 49. Kd5 {[%emt 0:00:00] Black must now prevent Kd6.} f3 {[%emt 0:01:23]} 50. Be1 {[%emt 0:00:00] aiming for Kd6.} ({Avoid the trap} 50. Bxg5 $2 f2 51. Bd2 f1=Q $19) 50... Be7 {[%emt 0:12:16]} 51. Bf2 {[%emt 0:00:00]} a6 {[%emt 0:01:31]} 52. a3 {[%emt 0:00:00]} Kf5 {[%emt 0:00:34]} 53. a4 {[%emt 0:00:00]} a5 {[%emt 0:00:44]} 54. b3 {[%emt 0:00:00]} Kf4 {[%emt 0:02:06]} 55. Kc4 {[%emt 0:00:00]} Ke5 {[%emt 0:01:42]} 56. Kb5 {[%emt 0:00:00]} (56. Kd3 $11) 56... Kxe6 {[%emt 0:01:27]} ({Better is} 56... Kd6 $15 57. Kxa5 Kc6) 57. Kxa5 {[%emt 0:00:00] The position is equal.} Kd7 {[%emt 0:00:12] ( -> ...Kc6)} 58. Kb5 {[%emt 0:00:00]} Kc7 {[%emt 0:00:30]} 59. a5 {[%emt 0:00:00]} Bd6 {[%emt 0:00:28]} 60. b4 $1 {[%emt 0:00:00][%cal Bb3b4,Bb4b5,Bb5a6][%mdl 32]} Kb8 {[%emt 0:01:36]} 61. Kc4 {[%emt 0:00:00]} Kc7 {[%emt 0:00:37]} 62. b5 {[%emt 0:00:00]} Kd7 {[%emt 0:00:44]} 63. Kd5 {[%emt 0:00:00] next a6 is good for White.} Bb4 {[%emt 0:00:21]} 64. a6 {[%emt 0:00:00]} bxa6 {[%emt 0:00:17]} 65. bxa6 {[%emt 0:00:00] White wants to mate with a7.} Kc7 {[%emt 0:00:14]} 66. Kc4 {[%emt 0:01:24]} (66. a7 $5 Kb7 $8 67. Ke5 $11) 66... Bd6 {[%emt 0:01:11]} 67. Kb5 {[%emt 0:00:04]} (67. a7 $5 Kb7 $8 68. Be3 $11) 67... Kb8 {[%emt 0:00:21]} 68. Kc6 {[%emt 0:01:01]} Bf4 {[%emt 0:00:25]} 69. Kd5 {[%emt 0:00:08] White really could win this.   Weighted Error Value: White=0.65/Black=0.50} 1/2-1/2

[Event "FIDE Zonal 4-2 Open 2023"]
[Site "Dimbroko"]
[Date "2023.03.27"]
[Round "2.7"]
[White "Semeko, Lumen Paco"]
[Black "Ble, Kouko Hubert"]
[Result "0-1"]
[ECO "A13"]
[WhiteElo "1483"]
[BlackElo "1825"]
[Annotator "NA COMBH"]
[PlyCount "142"]
[EventDate "2023.03.25"]
[EventType "swiss"]
[SourceTitle "playchess.com"]
[Source "ChessBase"]
[SourceQuality "1"]
[TimeControl "40/5400+30:1800+30"]

1. b3 {[%emt 0:00:06]} Nf6 {[%emt 0:00:45]} 2. Bb2 {[%emt 0:00:05]} d5 {[%emt 0:00:13]} 3. Nf3 {[%emt 0:00:09]} e6 {[%emt 0:02:50]} 4. e3 {[%emt 0:00:06]} Be7 {[%emt 0:01:11]} 5. c4 {[%emt 0:00:15]} O-O {[%emt 0:00:35]} 6. Be2 {[%emt 0:00:18]} Nbd7 {[%emt 0:01:11]} 7. O-O {[%emt 0:01:16]} b6 {[%emt 0:00:28]} 8. d4 {[%emt 0:00:44]} Bb7 {[%emt 0:00:21]} 9. Nbd2 {[%emt 0:01:27]} c5 {[%emt 0:00:22]} 10. Re1 {[%emt 0:04:57]} Qc7 {[%emt 0:02:34]} 11. Rc1 {[%emt 0:00:31]} Rac8 {[%emt 0:01:18]} 12. cxd5 {[%emt 0:02:10]} exd5 {[%emt 0:00:59]} 13. dxc5 {[%emt 0:00:01]} bxc5 {[%emt 0:00:29]} 14. h3 {[%emt 0:02:37]} Qb6 {[%emt 0:05:08]} 15. Ne5 {[%emt 0:02:20]} Nxe5 {[%emt 0:02:05]} 16. Bxe5 {[%emt 0:00:00]} Nd7 {[%emt 0:00:26]} 17. Bf4 {[%emt 0:02:46]} Nf6 {[%emt 0:03:25]} 18. Nf3 {[%emt 0:08:14]} Rfd8 {[%emt 0:01:04]} 19. Qc2 {[%emt 0:03:40]} Ne4 {[%emt 0:01:36]} 20. Red1 {[%emt 0:03:23]} d4 {[%emt 0:12:17]} 21. Bd3 {[%emt 0:13:15]} f5 {[%emt 0:00:17]} 22. Bc4+ {[%emt 0:01:11]} Kf8 {[%emt 0:00:20]} 23. exd4 {[%emt 0:03:26]} cxd4 {[%emt 0:02:31]} 24. Qd3 {[%emt 0:18:04]} Bf6 {[%emt 0:01:18]} 25. Be5 {[%emt 0:01:37]} Bxe5 {[%emt 0:07:47]} 26. Nxe5 {[%emt 0:00:00]} Qf6 {[%emt 0:02:52]} 27. Nf3 {[%emt 0:02:16]} Nc5 {[%emt 0:04:40]} 28. Qd2 {[%emt 0:04:56]} Bxf3 {[%emt 0:11:14]} 29. gxf3 {[%emt 0:00:01]} g6 {[%emt 0:00:27]} 30. Qh6+ {[%emt 0:04:15]} Qg7 {[%emt 0:00:08]} 31. Qg5 {[%emt 0:00:55]} h6 {[%emt 0:02:13]} 32. Qf4 {[%emt 0:00:58]} Rc6 {[%emt 0:05:20]} 33. Bb5 {[%emt 0:03:08]} Ne6 {[%emt 0:00:22]} 34. Qd2 {[%emt 0:01:32]} Rcd6 {[%emt 0:00:28]} 35. Qb4 {[%emt 0:01:32]} Qf6 {[%emt 0:01:50]} 36. Rc6 {[%emt 0:00:07]} Nf4 {[%emt 0:02:13]} 37. Bf1 {[%emt 0:00:29]} Kg7 {[%emt 0:00:40]} 38. Rc7+ {[%emt 0:02:18]} R8d7 {[%emt 0:02:28]} 39. Rxd7+ {[%emt 0:02:40]} Rxd7 {[%emt 0:00:01]} 40. Re1 {[%emt 0:04:55]} Qd6 {[%emt 0:02:22]} 41. Qc4 {[%emt 0:37:35]} Kf6 {[%emt 0:37:05]} 42. Qg8 {[%emt 0:00:00]} Kg5 {[%emt 0:00:00]} 43. Kh1 {[%emt 0:00:00]} Qd5 {[%emt 0:00:00]} 44. Qxd5 {[%emt 0:00:00]} Rxd5 {[%emt 0:00:00]} 45. Rd1 {[%emt 0:00:00]} d3 {[%emt 0:00:00]} 46. Rd2 {[%emt 0:00:00]} Kh4 {[%emt 0:00:00]} 47. Kh2 {[%emt 0:00:00]} a5 {[%emt 0:00:00]} 48. a3 {[%emt 0:00:00]} Rd4 {[%emt 0:00:00]} 49. Bg2 {[%emt 0:00:00]} Kg5 {[%emt 0:00:00]} 50. Bf1 {[%emt 0:00:24]} Kf6 {[%emt 0:19:37]} 51. b4 {[%emt 0:05:21]} axb4 {[%emt 0:00:00]} 52. axb4 {[%emt 0:00:00]} Rxb4 {[%emt 0:00:00]} 53. h4 {[%emt 0:00:00]} Rd4 {[%emt 0:00:00]} 54. Kg3 {[%emt 0:00:00]} g5 {[%emt 0:02:00]} 55. hxg5+ {[%emt 0:02:00]} hxg5 {[%emt 0:00:00]} 56. Kh2 {[%emt 0:00:00]} Ke5 {[%emt 0:00:00]} 57. Kg3 {[%emt 0:00:00]} Rd5 {[%emt 0:00:00]} 58. Kh2 {[%emt 0:00:00]} Kd4 {[%emt 0:00:00]} 59. Bxd3 {[%emt 0:00:30]} Nxd3 {[%emt 0:00:00]} 60. Kg3 {[%emt 0:00:01]} Kc3 {[%emt 0:00:00]} 61. Rd1 {[%emt 0:01:05]} Kc2 {[%emt 0:00:00]} 62. Rh1 {[%emt 0:00:15]} f4+ {[%emt 0:00:00]} 63. Kg2 {[%emt 0:00:40]} Kd2 {[%emt 0:00:00]} 64. Ra1 {[%emt 0:01:18]} Ne1+ {[%emt 0:00:00]} 65. Kh3 {[%emt 0:00:35]} Nxf3 {[%emt 0:00:00]} 66. Kg4 {[%emt 0:00:09]} Ke2 {[%emt 0:00:00]} 67. Ra3 {[%emt 0:00:50]} Nd2 {[%emt 0:00:00]} 68. f3 {[%emt 0:00:28]} Rd3 {[%emt 0:00:00]} 69. Ra5 {[%emt 0:00:37]} Nxf3 {[%emt 0:00:00]} 70. Ra2+ {[%emt 0:00:14]} Nd2 {[%emt 0:00:00]} 71. Rb2 {[%emt 0:00:46]} f3 {[%emt 0:00:00]} 0-1

[Event "FIDE Zonal 4-2 Open 2023"]
[Site "Dimbroko"]
[Date "2023.03.27"]
[Round "2.9"]
[White "Barcon, Harmon"]
[Black "De Gondo, Simplice Armel"]
[Result "1-0"]
[ECO "B84"]
[WhiteElo "1928"]
[BlackElo "2086"]
[Annotator "TA"]
[PlyCount "173"]
[EventDate "2023.03.25"]
[EventType "swiss"]
[SourceTitle "playchess.com"]
[Source "ChessBase"]
[SourceQuality "1"]
[TimeControl "40/5400+30:1800+30"]

{[%evp 15,173,4,8,-9,-13,-15,-7,-27,-12,-40,-19,-25,0,0,0,0,0,-1,0,-2,-7,-9,5,6,0,0,11,-29,-31,-22,-13,-41,-25,-48,-22,-25,0,0,-12,-7,0,0,0,0,0,0,0,0,0,-47,0,0,61,61,64,64,89,-162,-156,-106,-20,-89,-81,-93,-93,-132,29,17,16,-80,0,-14,0,-87,0,0,18,0,42,46,87,87,127,119,419,339,408,321,1205,1204,2134,2104,2074,2077,1913,2031,1197,781,774,767,756,741,674,630,658,604,779,781,779,777,764,764,765,715,741,729,702,689,686,626,1655,1597,1720,1677,5713,1899,1866,1741,2057,2035,2132,2099,2032,2023,1777,1675,1766,1929,1789,1751,1488,1472,1738,1200,1245,754,1589,1460,29982,29983,29984,29985,29983,6847,4817,3030,7389,6436,29983,29982]} 1. e4 {[%emt 0:00:04]} c5 {[%emt 0:00:01]} 2. Nf3 {[%emt 0:00:13]} d6 {[%emt 0:00:04]} 3. d4 {[%emt 0:00:26]} cxd4 {[%emt 0:00:01]} 4. Nxd4 {[%emt 0:00:14]} Nf6 {[%emt 0:00:00]} 5. Nc3 {[%emt 0:00:20]} a6 {[%emt 0:00:01]} 6. Be2 {[%emt 0:01:49]} e6 {[%emt 0:00:01]} 7. O-O {[%emt 0:00:31]} Be7 {[%emt 0:00:01]} 8. Be3 {[%emt 0:00:54]} O-O {[%emt 0:00:02]} 9. Bd3 {[%emt 0:01:28] B84: Sicilian Scheveningen: 6 Be2 a6, lines without early Be3.} b5 {[%emt 0:00:15]} 10. a3 {[%emt 0:00:55]} Bb7 {[%emt 0:00:03]} 11. f4 {[%emt 0:01:44] The position is equal.} Nbd7 {[%emt 0:00:01]} 12. Qe2 {[%emt 0:04:05]} Nc5 {[%emt 0:06:17][%cal Rc5e4]} 13. Bf2 {[%emt 0:03:20] [#]} d5 $146 {[%emt 0:15:07][%cal Rd5e4]} ({Predecessor:} 13... Qc7 14. e5 dxe5 15. fxe5 Nd5 16. Nxd5 Bxd5 17. b4 Nd7 18. Bg3 Rad8 19. Nf3 Nb6 {0-1 Jeromin,R (1622)-Everke,E (1642) Muensterland Verbandsklasse 1920 2019 (5.8)}) 14. e5 {[%emt 0:09:18]} Nfe4 {[%emt 0:00:02]} 15. Bxe4 {[%emt 0:00:22]} Nxe4 {[%emt 0:00:42]} 16. Nxe4 {[%emt 0:00:08]} dxe4 {[%emt 0:00:02]} 17. Rad1 {[%emt 0:00:44][%cal Od4e6]} Qc7 {[%emt 0:00:08]} 18. c3 {[%emt 0:03:51]} Rfd8 {[%emt 0:01:05]} 19. Rd2 {[%emt 0:00:27]} Bd5 {[%emt 0:03:52]} 20. Rfd1 {[%emt 0:00:28]} Qb7 {[%emt 0:00:02]} 21. f5 {[%emt 0:04:29][%cal Bf4f5,Bf5f6][%mdl 32]} Qc7 {[%emt 0:18:42]} 22. Bg3 {[%emt 0:03:33]} Bg5 {[%emt 0:09:49]} 23. f6 $1 {[%emt 0:01:59][%cal Oe2g4]} g6 {[%emt 0:06:52]} (23... gxf6 24. exf6 (24. Qg4 Qc5 $16) 24... Qc5 25. Qg4 $16) 24. Rc2 {[%emt 0:07:57]} h5 {[%emt 0:09:54]} (24... Bc4 $5 {[%cal Rc4e2]} 25. Qxe4 Bb3 $15 {[%mdl 64] Pin}) 25. Re1 {[%emt 0:04:38]} Rac8 {[%emt 0:08:06]} 26. Qf2 {[%emt 0:01:36]} e3 {[%emt 0:10:21]} 27. Rxe3 {[%emt 0:00:11] Strongly threatening Bf4.} Bxe3 {[%emt 0:00:19]} (27... Bxg2 {is interesting.} 28. Rd2 Ba8 29. Bf4 Qb7) 28. Qxe3 {[%emt 0:00:04]} Kh7 {[%emt 0:05:06] Dodges Qh6+} 29. Bf4 {[%emt 0:00:05]} Rh8 {[%emt 0:01:12]} 30. Bh6 {[%emt 0:00:09]} Kg8 {[%emt 0:00:28]} 31. Rd2 {[%emt 0:03:32]} Rd8 {[%emt 0:00:39]} 32. Bf4 {[%emt 0:00:15]} (32. Bg7 $11 {is superior.} Rh7 33. Bh6) 32... Ba8 {[%emt 0:01:01]} (32... h4 $1 $15 {is more appropriate.}) 33. h4 {[%emt 0:03:31]} Qb7 {[%emt 0:01:09] Black is weak on the dark squares} (33... Qc8 $11) 34. Nf3 $1 $14 {[%emt 0:17:34]} Rxd2 {[%emt 0:00:38]} 35. Qxd2 {[%emt 0:00:03]} Qd5 {[%emt 0:00:10] [#] Inhibits Qd8+.} 36. Qf2 {[%emt 0:05:10][%mdl 8192]} (36. Ng5 $1 $16 {stays on course.}) 36... Qd1+ $19 {[%emt 0:01:19]} 37. Ne1 {[%emt 0:00:06]} Bd5 {[%emt 0:02:59]} (37... Kh7 $17 {aiming for ...Rd8.} 38. Bg3 Bb7) 38. Kh2 {[%emt 0:01:06]} (38. Bd2 $1 $11) 38... Kh7 {[%emt 0:01:02]} 39. Bd2 {[%emt 0:01:35][%cal Of2a7]} Qg4 {[%emt 0:00:23]} 40. Kg1 {[%emt 0:01:25]} Qc4 $2 {[%emt 0:01:33]} (40... Rd8 $17 {Hoping for ...Be4.} 41. Qa7 Rf8) 41. Qa7 $40 {[%emt 0:31:33][%csl LRa6,LRf7][%cal Ra7f7][%mdl 1152] White has compensation. White is up to no good.} Kg8 {[%emt 0:30:48]} (41... Qxh4 $2 42. Qxf7#) 42. Qf2 {[%emt 0:01:02]} (42. Qe7 $11 {keeps the balance.} Qc8 43. Nf3) 42... Kh7 {[%emt 0:00:33]} ({Black should play} 42... Qe4 $17 43. Qe3 Qxe3+ 44. Bxe3 Kf8) 43. Qe3 {[%emt 0:00:23]} (43. Qa7 $5 {[%cal Ra7f7]} Kg8 44. Qb8+ Kh7 45. Qa7 $11) 43... Kg8 {[%emt 0:00:05][%cal Oc4e4]} (43... Qxh4 $2 44. Qh6+ Kg8 45. Qg7#) (43... g5 {is more complex.} 44. Qxg5 Qg4 45. Nc2 Qxg5 46. Bxg5 Rc8) 44. Qf2 {[%emt 0:02:04]} (44. Qa7 $11 {remains equal.}) 44... Qc7 {[%emt 0:00:00]} (44... Qe4 $17 45. Qe3 Qxe3+ 46. Bxe3 Kh7) 45. Qd4 {[%emt 0:00:00]} Kf8 {[%emt 0:00:00]} 46. Nd3 {[%emt 0:00:00][%cal Be1d3,Bd3f4,Bf4h3,Bh3g5][%mdl 32]} Kg8 {[%emt 0:00:00]} 47. Nf4 {[%emt 0:00:00]} Qb7 {[%emt 0:00:00]} 48. Nh3 {[%emt 0:00:00] White is much more active.} Kf8 {[%emt 0:00:00]} (48... Bxg2 $2 {gets mated.} 49. Qd8+ Kh7 50. Ng5+ Kh6 51. Qxh8#) 49. Ng5 {[%emt 0:00:00]} Ke8 $2 {[%emt 0:00:00][%mdl 8192] [#]} (49... Bxg2 $2 50. Qd8#) (49... Qd7 $16) 50. c4 $1 $18 {[%emt 0:00:00][%mdl 512]} bxc4 {[%emt 0:00:00]} 51. Ba5 {[%emt 0:00:00] Prevents Qc7} Rg8 $2 {[%emt 0:00:00]} (51... Bxg2 $2 52. Qd8#) (51... c3 52. Qxc3 (52. Bxc3 Qc7 $14) 52... Kd7) 52. Qc5 {[%emt 0:00:00] Threatening mate with Qd6.} Qd7 {[%emt 0:00:00]} 53. Kh2 {[%emt 0:00:00]} Rh8 {[%emt 0:00:00]} 54. Qb4 {[%emt 0:00:00]} Bb7 {[%emt 0:00:00] [#]} 55. Ne4 $1 {[%emt 0:00:00][%mdl 576] Back Rank} Bc8 {[%emt 0:00:00]} 56. Nd6+ {[%emt 0:00:00]} Kf8 {[%emt 0:00:00]} 57. Nxc8+ {[%emt 0:00:00]} Kg8 {[%emt 0:00:00]} 58. Ne7+ {[%emt 0:00:00]} Kh7 {[%emt 0:00:00]} 59. Qxc4 {[%emt 0:00:00]} Rb8 {[%emt 0:00:00]} 60. Bc3 {[%emt 0:00:00]} ({Not} 60. Qxa6 Qd4 61. Be1 (61. Bc3 Qf4+ 62. Kg1 Qe3+ 63. Kf1 Qf4+ 64. Ke2 Qg4+ 65. Kf2 Qf4+ 66. Ke2 Qg4+ 67. Kf2 Qf4+ 68. Ke2 $14) 61... Qe3 $16) 60... Qd1 {[%emt 0:00:00]} 61. Qf4 {[%emt 0:00:00] Intending Bd2 and mate.} Qg4 {[%emt 0:00:00]} 62. Qxg4 {[%emt 0:00:00]} hxg4 {[%emt 0:00:00]} 63. Kg3 {[%emt 0:00:00]} Rb7 {[%emt 0:00:00]} 64. Kxg4 {[%emt 0:00:00]} Rc7 {[%emt 0:00:00]} 65. Kf3 {[%emt 0:00:31]} Rc4 {[%emt 0:00:00]} 66. g3 {[%emt 0:04:06]} Rc7 {[%emt 0:00:00]} 67. Ke3 {[%emt 0:00:49] Threatens to win with Kd3.} Rc4 {[%emt 0:00:00]} 68. Kd3 {[%emt 0:00:03]} Rg4 {[%emt 0:00:00]} 69. Be1 {[%emt 0:00:09]} Kh6 {[%emt 0:00:00]} 70. Nc8 {[%emt 0:01:17] Nd6 is the strong threat.} g5 {[%emt 0:00:00]} 71. hxg5+ {[%emt 0:00:35]} Kxg5 {[%emt 0:00:00]} 72. Nd6 {[%emt 0:00:04]} Kg6 {[%emt 0:00:00]} 73. b4 {[%emt 0:01:58]} Rg5 {[%emt 0:00:00]} 74. Ke4 {[%emt 0:00:44]} Rg4+ {[%emt 0:00:00]} 75. Ke3 {[%emt 0:00:11]} Rg5 {[%emt 0:00:35]} 76. Kf4 {[%emt 0:01:06] White wants to mate with g4.} Rh5 {[%emt 0:00:03]} 77. a4 {[%emt 0:01:12]} Rh1 {[%emt 0:00:03]} 78. Bf2 {[%emt 0:00:09]} Rb1 {[%emt 0:01:38]} 79. Bc5 {[%emt 0:00:28] b5 would be deadly.} Rc1 {[%emt 0:02:09]} 80. Ne4 {[%emt 0:00:56]} Rc4 {[%emt 0:00:27]} 81. Bd6 {[%emt 0:00:34]} a5 {[%emt 0:00:05]} 82. b5 {[%emt 0:01:10][%cal Bb4b5,Bb5b6,Bb6b7][%mdl 32]} Rc2 {[%emt 0:00:38]} 83. b6 {[%emt 0:00:24]} Rb2 {[%emt 0:00:03]} 84. Bc7 {[%emt 0:01:11]} (84. Bc5 $142 Rb1 85. Nd6 Kh5 86. b7 Rf1+ 87. Ke4 Rb1 88. Nb5 Kg4 89. b8=Q) 84... Rb4 {[%emt 0:00:05]} 85. Ke3 {[%emt 0:01:28]} Kf5 {[%emt 0:00:02]} 86. Nc5 {[%emt 0:01:11] White threatens b7 and mate.} Kg4 {[%emt 0:00:09]} 87. b7 {[%emt 0:00:12] Quite a comeback for White.   Weighted Error Value: White=0.23 (precise) /Black=0.34} 1-0